[Event "25th European Club Cup Women 2021"]
[Site "Struga"]
[Date "2021.09.24"]
[Round "7.1"]
[White "Salimova, Nurgyul"]
[Black "Bivol, Alina"]
[Result "1/2-1/2"]
[ECO "E04"]
[WhiteElo "2362"]
[BlackElo "2385"]
[Annotator "NA"]
[PlyCount "75"]
[EventDate "2021.09.18"]
[EventType "team-tourn"]
[EventCountry "MKD"]
[SourceTitle "playchess.com"]
[Source "ChessBase"]
[SourceQuality "1"]
[TimeControl "40/5400+30:1800+30"]

1. d4 {[%emt 0:00:04]} d5 {[%emt 0:00:15]} 2. Nf3 {[%emt 0:00:16]} Nf6 {
[%emt 0:00:58]} 3. c4 {[%emt 0:00:08]} e6 {[%emt 0:00:47]} 4. g3 {[%emt 0:00:
17]} dxc4 {[%emt 0:01:17]} 5. Bg2 {[%emt 0:00:06]} c5 {[%emt 0:00:44]} 6. O-O {
[%emt 0:00:15]} Nc6 {[%emt 0:00:37]} 7. dxc5 {[%emt 0:00:07]} Qxd1 {[%emt 0:00:
23]} 8. Rxd1 {[%emt 0:00:06]} Bxc5 {[%emt 0:00:04]} 9. Nbd2 {[%emt 0:00:07]} c3
{[%emt 0:01:11]} 10. bxc3 {[%emt 0:00:08]} O-O {[%emt 0:00:22]} 11. Nb3 {
[%emt 0:00:05]} Be7 {[%emt 0:00:22]} 12. Nfd4 {[%emt 0:00:08]} Nxd4 {[%emt 0:
00:13]} 13. cxd4 {[%emt 0:00:36]} Nd5 {[%emt 0:00:32]} 14. Bd2 {[%emt 0:00:12]}
f5 {[%emt 0:00:07]} 15. Bxd5 {[%emt 0:05:41]} exd5 {[%emt 0:00:07]} 16. Na5 {
[%emt 0:17:42]} Re8 {[%emt 0:04:08]} 17. e3 {[%emt 0:07:08]} Bd6 {[%emt 0:07:
30]} 18. Rac1 {[%emt 0:07:25]} b6 {[%emt 0:04:23]} 19. Nc6 {[%emt 0:00:26]} Bb7
{[%emt 0:01:07]} 20. Bb4 {[%emt 0:04:13]} Bxc6 {[%emt 0:00:34]} 21. Bxd6 {
[%emt 0:00:10]} Rec8 {[%emt 0:01:12]} 22. f3 {[%emt 0:18:29]} Bb5 {[%emt 0:01:
25]} 23. Kf2 {[%emt 0:00:48]} Kf7 {[%emt 0:00:35]} 24. h4 {[%emt 0:06:20]} h5 {
[%emt 0:02:06]} 25. Be5 {[%emt 0:05:16]} Rc4 {[%emt 0:02:48]} 26. Rxc4 {
[%emt 0:01:12]} Bxc4 {[%emt 0:00:12]} 27. Rd2 {[%emt 0:01:12]} Rc8 {[%emt 0:01:
59]} 28. Rc2 {[%emt 0:01:16]} Ba6 {[%emt 0:00:31]} 29. Rxc8 {[%emt 0:00:32]}
Bxc8 {[%emt 0:00:01]} 30. Bb8 {[%emt 0:00:08]} a6 {[%emt 0:00:09]} 31. Bc7 {
[%emt 0:00:06]} b5 {[%emt 0:00:04]} 32. Ba5 {[%emt 0:00:52]} Ke7 {[%emt 0:01:
05]} 33. Ke2 {[%emt 0:00:39]} g6 {[%emt 0:00:38]} 34. Kd2 {[%emt 0:00:12]} Kd7
{[%emt 0:00:49]} 35. Kc3 {[%emt 0:00:08]} Bb7 {[%emt 0:01:00]} 36. Kb4 {
[%emt 0:00:07]} Kc6 {[%emt 0:00:25]} 37. Bd8 {[%emt 0:00:07]} Bc8 {[%emt 0:00:
51]} 38. Kc3 {[%emt 0:00:21]} 1/2-1/2

[Event "25th European Club Cup Women 2021"]
[Site "Struga"]
[Date "2021.09.24"]
[Round "7.2"]
[White "Heinemann, Josefine"]
[Black "Mehmed, Elif"]
[Result "1-0"]
[ECO "B80"]
[WhiteElo "2292"]
[BlackElo "2260"]
[Annotator "NA"]
[PlyCount "107"]
[EventDate "2021.09.18"]
[EventType "team-tourn"]
[EventCountry "MKD"]
[SourceTitle "playchess.com"]
[Source "ChessBase"]
[SourceQuality "1"]
[TimeControl "40/5400+30:1800+30"]

1. e4 c5 2. Nf3 d6 3. d4 cxd4 4. Nxd4 Nf6 5. Nc3 a6 6. f3 e6 7. Be3 b5 8. Qd2
Nbd7 9. O-O-O Nb6 10. a3 Bb7 11. g4 Nfd7 12. Qf2 Rc8 13. Na2 Be7 14. h4 Nc4 15.
Bxc4 Rxc4 16. g5 O-O 17. Rhg1 Qa5 18. h5 Rfc8 19. Kb1 Bf8 20. g6 e5 21. gxf7+
Kxf7 22. Nf5 Rxc2 23. Qh4 Nf6 24. h6 {[%emt 1:21:43]} Qa4 {[%emt 1:30:31]} 25.
Bc1 {[%emt 0:00:30]} g5 {[%emt 0:00:30]} 26. Qxg5 {[%emt 0:00:30]} d5 {[%emt 0:
00:30]} 27. Ne3 {[%emt 0:00:30]} Re2 {[%emt 0:00:30]} 28. exd5 {[%emt 0:00:30]}
Qb3 {[%emt 0:00:30]} 29. Qxe5 {[%emt 0:00:30]} Re8 {[%emt 0:00:30]} 30. Qc7+ {
[%emt 0:00:30]} Re7 {[%emt 0:00:30]} 31. Qb6 {[%emt 0:00:30]} Nxd5 {[%emt 0:00:
30]} 32. Nxd5 {[%emt 0:00:30]} Bxd5 {[%emt 0:00:30]} 33. Nc3 {[%emt 0:00:30]}
Bc4 {[%emt 0:00:30]} 34. Rd4 {[%emt 0:00:30]} Qc2+ {[%emt 0:00:30]} 35. Ka1 {
[%emt 0:00:30]} Bd3 {[%emt 0:00:30]} 36. Rf4+ {[%emt 0:00:30]} Bf5 {[%emt 0:00:
30]} 37. Rxf5+ {[%emt 0:00:30]} Qxf5 {[%emt 0:00:30]} 38. Nxe2 {[%emt 0:00:30]}
Rxe2 {[%emt 0:00:30]} 39. Qxa6 {[%emt 0:00:30]} Qc5 {[%emt 0:00:30]} 40. Rd1 {
[%emt 0:00:30]} Re7 {[%emt 0:00:30]} 41. Qa5 {[%emt 0:30:30]} Qc2 {[%emt 0:30:
30]} 42. Qd8 {[%emt 0:00:30]} Qb3 {[%emt 0:00:30]} 43. Qd4 {[%emt 0:00:30]} Re6
{[%emt 0:00:30]} 44. Qf4+ {[%emt 0:00:30]} Ke8 {[%emt 0:00:30]} 45. Qb8+ {
[%emt 0:00:30]} Kf7 {[%emt 0:00:30]} 46. Qc7+ {[%emt 0:00:30]} Be7 {[%emt 0:00:
30]} 47. Rg1 {[%emt 0:00:30]} Qd5 {[%emt 0:00:30]} 48. Rg7+ {[%emt 0:00:30]}
Ke8 {[%emt 0:00:30]} 49. Qc8+ {[%emt 0:00:30]} Bd8 {[%emt 0:00:30]} 50. Rg8+ {
[%emt 0:00:30]} Ke7 {[%emt 0:00:30]} 51. Bg5+ {[%emt 0:00:30]} Kf7 {[%emt 0:00:
30]} 52. Rg7+ {[%emt 0:00:30]} Ke8 {[%emt 0:00:30]} 53. Qxd8+ {[%emt 0:00:30]}
Qxd8 {[%emt 0:00:30]} 54. Rg8+ {[%emt 0:00:30]} 1-0

[Event "25th European Club Cup Women 2021"]
[Site "Struga"]
[Date "2021.09.24"]
[Round "7.3"]
[White "Krasteva, Beloslava"]
[Black "Dordzhieva, Dinara"]
[Result "1/2-1/2"]
[ECO "A36"]
[WhiteElo "2217"]
[BlackElo "2303"]
[Annotator "NA"]
[PlyCount "82"]
[EventDate "2021.09.18"]
[EventType "team-tourn"]
[EventCountry "MKD"]
[SourceTitle "playchess.com"]
[Source "ChessBase"]
[SourceQuality "1"]
[TimeControl "40/5400+30:1800+30"]

1. c4 {[%emt 0:00:39]} Nf6 {[%emt 0:00:14]} 2. Nc3 {[%emt 0:00:19]} c5 {
[%emt 0:03:42]} 3. g3 {[%emt 0:02:15]} Nc6 {[%emt 0:03:30]} 4. Bg2 {[%emt 0:00:
10]} g6 {[%emt 0:00:21]} 5. d3 {[%emt 0:02:21]} Bg7 {[%emt 0:00:10]} 6. e3 {
[%emt 0:00:56]} O-O {[%emt 0:03:49]} 7. Nge2 {[%emt 0:00:07]} d6 {[%emt 0:05:
22]} 8. O-O {[%emt 0:00:13]} Bd7 {[%emt 0:05:24]} 9. b3 {[%emt 0:02:12]} a6 {
[%emt 0:03:18]} 10. Bb2 {[%emt 0:01:22]} Rb8 {[%emt 0:00:18]} 11. Qd2 {[%emt 0:
02:14]} b5 {[%emt 0:00:55]} 12. Nd5 {[%emt 0:02:04]} Nxd5 {[%emt 0:11:24]} 13.
cxd5 {[%emt 0:01:49]} Bxb2 {[%emt 0:04:26]} 14. Qxb2 {[%emt 0:00:55]} Nb4 {
[%emt 0:04:04]} 15. d4 {[%emt 0:04:56]} a5 {[%emt 0:12:33]} 16. dxc5 {[%emt 0:
05:26]} Nd3 {[%emt 0:01:47]} 17. Qd2 {[%emt 0:02:02]} Nxc5 {[%emt 0:00:03]} 18.
b4 {[%emt 0:02:54]} axb4 {[%emt 0:02:47]} 19. Qxb4 {[%emt 0:00:28]} Ra8 {
[%emt 0:04:22]} 20. Nd4 {[%emt 0:06:50]} Ra4 {[%emt 0:00:16]} 21. Qd2 {[%emt 0:
03:58]} Qa8 {[%emt 0:02:50]} 22. Rfb1 {[%emt 0:02:28]} Ra3 {[%emt 0:03:23]} 23.
Qe2 {[%emt 0:06:51]} Na4 {[%emt 0:12:31]} 24. Rb3 {[%emt 0:03:46]} Nc5 {
[%emt 0:00:51]} 25. Rbb1 {[%emt 0:14:20]} Re8 {[%emt 0:02:37]} 26. Nxb5 {
[%emt 0:07:18]} Bxb5 {[%emt 0:00:03]} 27. Qxb5 {[%emt 0:00:14]} Qa4 {[%emt 0:
04:05]} 28. Bf1 {[%emt 0:02:35]} Ra8 {[%emt 0:00:19]} 29. Qxa4 {[%emt 0:00:48]}
R3xa4 {[%emt 0:01:37]} 30. Rb2 {[%emt 0:00:13]} Kg7 {[%emt 0:03:15]} 31. Rc2 {
[%emt 0:02:44]} Rb4 {[%emt 0:03:36]} 32. Bc4 {[%emt 0:02:00]} Nd7 {[%emt 0:00:
54]} 33. Rd1 {[%emt 0:05:33]} g5 {[%emt 0:01:02]} 34. Kg2 {[%emt 0:02:11]} Rc8
{[%emt 0:00:39]} 35. Rdc1 {[%emt 0:01:25]} Nc5 {[%emt 0:00:41]} 36. h3 {
[%emt 0:02:06]} h6 {[%emt 0:00:08]} 37. f4 {[%emt 0:02:48]} Ra8 {[%emt 0:00:42]
} 38. Kf3 {[%emt 0:00:47]} Ra3 {[%emt 0:00:38]} 39. Rc3 {[%emt 0:03:27]} Ra5 {
[%emt 0:00:38]} 40. e4 {[%emt 0:00:00]} Rb2 {[%emt 0:00:00]} 41. Re3 {[%emt 0:
14:17]} Rh2 {[%emt 0:04:42]} 1/2-1/2

[Event "25th European Club Cup Women 2021"]
[Site "Struga"]
[Date "2021.09.24"]
[Round "7.4"]
[White "Trippold, Denise"]
[Black "Manova, Ivana"]
[Result "1/2-1/2"]
[ECO "E11"]
[WhiteElo "2046"]
[BlackElo "1779"]
[Annotator "NA"]
[PlyCount "109"]
[EventDate "2021.09.18"]
[EventType "team-tourn"]
[EventCountry "MKD"]
[SourceTitle "playchess.com"]
[Source "ChessBase"]
[SourceQuality "1"]
[TimeControl "40/5400+30:1800+30"]

1. d4 {[%emt 0:00:06]} Nf6 {[%emt 0:00:15]} 2. c4 {[%emt 0:00:09]} e6 {[%emt 0:
00:20]} 3. Nf3 {[%emt 0:00:16]} Bb4+ {[%emt 0:00:27]} 4. Bd2 {[%emt 0:01:39]}
Qe7 {[%emt 0:00:36]} 5. g3 {[%emt 0:00:36]} Nc6 {[%emt 0:00:41]} 6. Bg2 {
[%emt 0:01:53]} Bxd2+ {[%emt 0:01:55]} 7. Nbxd2 {[%emt 0:00:16]} d6 {[%emt 0:
00:38]} 8. e4 {[%emt 0:05:01]} e5 {[%emt 0:02:09]} 9. d5 {[%emt 0:00:15]} Nb8 {
[%emt 0:00:31]} 10. O-O {[%emt 0:01:22]} O-O {[%emt 0:01:33]} 11. Ne1 {[%emt 0:
00:37]} Ne8 {[%emt 0:13:44]} 12. Nd3 {[%emt 0:03:44]} f5 {[%emt 0:02:58]} 13.
f4 {[%emt 0:09:01]} fxe4 {[%emt 0:13:39]} 14. Nxe4 {[%emt 0:03:30]} exf4 {
[%emt 0:03:09]} 15. Nxf4 {[%emt 0:04:01]} Nd7 {[%emt 0:01:05]} 16. Ne6 {
[%emt 0:17:10]} Rxf1+ {[%emt 0:00:20]} 17. Qxf1 {[%emt 0:00:39]} Ne5 {[%emt 0:
00:18]} 18. Qe2 {[%emt 0:25:16]} c6 {[%emt 0:15:17]} 19. Nf4 {[%emt 0:13:41]}
Bg4 {[%emt 0:02:42]} 20. Qf1 {[%emt 0:00:05]} c5 {[%emt 0:03:09]} 21. h3 {
[%emt 0:01:13]} Bf5 {[%emt 0:04:53]} 22. Re1 {[%emt 0:02:25]} Nf6 {[%emt 0:04:
12]} 23. Ne6 {[%emt 0:02:40]} Bxe6 {[%emt 0:05:29]} 24. dxe6 {[%emt 0:05:04]}
Rf8 {[%emt 0:00:22]} 25. Qe2 {[%emt 0:00:43]} b6 {[%emt 0:01:22]} 26. Nxd6 {
[%emt 0:01:26]} Qxd6 {[%emt 0:03:55]} 27. Qxe5 {[%emt 0:00:01]} Qxe5 {[%emt 0:
00:32]} 28. Rxe5 {[%emt 0:00:01]} Re8 {[%emt 0:00:15]} 29. Bd5 {[%emt 0:01:30]}
Kf8 {[%emt 0:00:36]} 30. Kf2 {[%emt 0:00:16]} Ke7 {[%emt 0:00:45]} 31. Ke2 {
[%emt 0:00:49]} g6 {[%emt 0:01:30]} 32. Re3 {[%emt 0:00:09]} Rd8 {[%emt 0:01:
51]} 33. Rd3 {[%emt 0:00:19]} Nh5 {[%emt 0:02:12]} 34. Ra3 {[%emt 0:00:50]} a5
{[%emt 0:00:24]} 35. Rb3 {[%emt 0:00:25]} Rd6 {[%emt 0:00:07]} 36. Rf3 {
[%emt 0:00:12]} Nf6 {[%emt 0:00:22]} 37. Rd3 {[%emt 0:00:13]} Nh5 {[%emt 0:00:
54]} 38. Rf3 {[%emt 0:00:26]} Nf6 {[%emt 0:00:06]} 39. Rd3 {[%emt 0:00:02]} Nh5
{[%emt 0:00:12]} 40. Re3 {[%emt 0:00:00]} Ng7 {[%emt 0:00:00]} 41. h4 {[%emt 0:
26:04]} Nf5 {[%emt 0:05:03]} 42. Rd3 {[%emt 0:00:44]} h5 {[%emt 0:00:43]} 43.
Kf2 {[%emt 0:02:37]} Kf6 {[%emt 0:00:25]} 44. Kf3 {[%emt 0:01:28]} Nd4+ {
[%emt 0:06:49]} 45. Ke4 {[%emt 0:00:03]} Nxe6 {[%emt 0:00:26]} 46. Rf3+ {
[%emt 0:00:20]} Ke7 {[%emt 0:00:15]} 47. Ke5 {[%emt 0:00:34]} Nd8 {[%emt 0:01:
22]} 48. Rf4 {[%emt 0:03:08]} Nc6+ {[%emt 0:02:07]} 49. Ke4 {[%emt 0:00:01]}
Nd8 {[%emt 0:01:12]} 50. Rf3 {[%emt 0:00:32]} Ne6 {[%emt 0:01:28]} 51. Ke5 {
[%emt 0:00:32]} Nd8 {[%emt 0:00:11]} 52. Rf4 {[%emt 0:01:26]} Nc6+ {[%emt 0:00:
28]} 53. Ke4 {[%emt 0:00:05]} Nd8 {[%emt 0:00:20]} 54. Rf3 {[%emt 0:00:56]} Ne6
{[%emt 0:00:37]} 55. Ke5 {[%emt 0:00:39]} 1/2-1/2

[Event "25th European Club Cup Women 2021"]
[Site "Struga"]
[Date "2021.09.24"]
[Round "7.5"]
[White "Peycheva, Gergana"]
[Black "Unuk, Laura"]
[Result "0-1"]
[ECO "D43"]
[WhiteElo "2331"]
[BlackElo "2389"]
[Annotator "ChessBase"]
[PlyCount "122"]
[EventDate "2021.09.18"]
[EventType "team-tourn"]
[EventCountry "MKD"]
[SourceTitle "playchess.com"]
[Source "ChessBase"]
[SourceQuality "1"]
[TimeControl "40/5400+30:1800+30"]

1. d4 {[%emt 0:00:03]} d5 {[%emt 0:00:04]} 2. c4 {[%emt 0:00:30]} c6 {[%emt 0:
00:05]} 3. Nf3 {[%emt 0:00:32]} Nf6 {[%emt 0:02:24]} 4. Qb3 {[%emt 0:00:24]} e6
{[%emt 0:02:38]} 5. g3 {[%emt 0:00:43]} Nbd7 {[%emt 0:01:13]} 6. Bg2 {[%emt 0:
00:07]} Bd6 {[%emt 0:00:10]} 7. O-O {[%emt 0:01:29]} O-O {[%emt 0:00:06]} 8.
Nc3 {[%emt 0:05:48]} Qe7 {[%emt 0:01:21]} 9. Bg5 {[%emt 0:04:50]} h6 {[%emt 0:
04:32]} 10. Bxf6 {[%emt 0:01:57]} Nxf6 {[%emt 0:00:05]} 11. Rfe1 {[%emt 0:06:
17]} dxc4 {[%emt 0:13:56]} 12. Qxc4 {[%emt 0:00:05]} e5 {[%emt 0:02:25]} 13.
dxe5 {[%emt 0:03:01]} Bxe5 {[%emt 0:00:06]} 14. Nxe5 {[%emt 0:00:48]} Qxe5 {
[%emt 0:00:05]} 15. e4 {[%emt 0:01:21]} Be6 {[%emt 0:01:05]} 16. Qe2 {[%emt 0:
02:20]} Rad8 {[%emt 0:01:02]} 17. Rad1 {[%emt 0:04:35]} b5 {[%emt 0:06:26]} 18.
a3 {[%emt 0:05:43]} a5 {[%emt 0:01:55]} 19. Qc2 {[%emt 0:10:15]} Qc5 {[%emt 0:
10:32]} 20. e5 {[%emt 0:05:33]} Ng4 {[%emt 0:06:46]} 21. Qe2 {[%emt 0:08:20]}
b4 {[%emt 0:00:57]} 22. axb4 {[%emt 0:04:58]} axb4 {[%emt 0:02:28]} 23. Na4 {
[%emt 0:09:39]} Qxe5 {[%emt 0:02:07]} 24. Rxd8 {[%emt 0:05:01]} Rxd8 {[%emt 0:
01:08]} 25. Bxc6 {[%emt 0:01:07]} Qh5 {[%emt 0:11:43]} 26. h4 {[%emt 0:04:53]}
Qa5 {[%emt 0:00:18]} 27. Qb5 {[%emt 0:04:36]} Qa7 {[%emt 0:05:01]} 28. Qc5 {
[%emt 0:01:32]} Qc7 {[%emt 0:00:12]} 29. Bf3 {[%emt 0:01:26]} Qd7 {[%emt 0:12:
58]} 30. Qxb4 {[%emt 0:01:01]} h5 {[%emt 0:00:03]} 31. Nc5 {[%emt 0:01:45]} Qa7
{[%emt 0:00:16]} 32. Qa3 {[%emt 0:01:40]} Qb6 {[%emt 0:01:00]} 33. b4 {[%emt 0:
00:49]} Bc4 {[%emt 0:04:32]} 34. Qc3 {[%emt 0:00:53]} Bb5 {[%emt 0:00:34]} 35.
Rd1 {[%emt 0:01:25]} Re8 {[%emt 0:00:48]} 36. Qd4 {[%emt 0:01:00]} Ne5 {
[%emt 0:03:52]} 37. Bg2 {[%emt 0:00:23]} Qg6 {[%emt 0:01:17]} 38. Ne4 {[%emt 0:
00:51]} Be2 {[%emt 0:00:44]} 39. Re1 {[%emt 0:00:47]} Qg4 {[%emt 0:01:22]} 40.
Qe3 {[%emt 0:00:00]} Bb5 {[%emt 0:00:00]} 41. Qg5 {[%emt 0:09:46]} Kf8 {
[%emt 0:01:57]} 42. Qe3 {[%emt 0:07:50]} Nd3 {[%emt 0:12:41]} 43. Ra1 {[%emt 0:
02:21]} Qd7 {[%emt 0:02:40]} 44. Ra7 {[%emt 0:01:09]} Qf5 {[%emt 0:08:57]} 45.
Qd4 {[%emt 0:02:58]} Kg8 {[%emt 0:02:12]} 46. Ra5 {[%emt 0:00:20]} Ne1 {
[%emt 0:01:46]} 47. Qc5 {[%emt 0:06:12]} Re5 {[%emt 0:04:13]} 48. Ra8+ {
[%emt 0:03:14]} Kh7 {[%emt 0:00:02]} 49. Ng5+ {[%emt 0:00:30]} Kg6 {[%emt 0:00:
02]} 50. Qd6+ {[%emt 0:01:59]} f6 {[%emt 0:00:05]} 51. Ra7 {[%emt 0:00:35]}
Nxg2 {[%emt 0:01:03]} 52. Kxg2 {[%emt 0:00:07]} Re1 {[%emt 0:00:52]} 53. Ra2 {
[%emt 0:00:54]} Qb1 {[%emt 0:01:29]} 54. Nf3 {[%emt 0:00:33]} Bf1+ {[%emt 0:00:
36]} 55. Kg1 {[%emt 0:00:21]} Bc4+ {[%emt 0:00:32]} 56. Kg2 {[%emt 0:00:37]}
Bxa2 {[%emt 0:00:32]} 57. Nxe1 {[%emt 0:00:04]} Qxe1 {[%emt 0:00:17]} 58. Qd3+
{[%emt 0:00:22]} Kh6 {[%emt 0:00:14]} 59. b5 {[%emt 0:00:08]} Bb1 {[%emt 0:00:
18]} 60. Qb3 {[%emt 0:00:37]} Be4+ {[%emt 0:00:13]} 61. f3 {[%emt 0:00:02]}
Qe2+ {[%emt 0:00:15]} 0-1

[Event "25th European Club Cup Women 2021"]
[Site "Struga"]
[Date "2021.09.24"]
[Round "7.6"]
[White "Cvitan, Ena"]
[Black "Toncheva, Nadya"]
[Result "0-1"]
[ECO "A35"]
[WhiteElo "2284"]
[BlackElo "2178"]
[Annotator "NA"]
[PlyCount "98"]
[EventDate "2021.09.18"]
[EventType "team-tourn"]
[EventCountry "MKD"]
[SourceTitle "playchess.com"]
[Source "ChessBase"]
[SourceQuality "1"]
[TimeControl "40/5400+30:1800+30"]

1. Nf3 {[%emt 0:00:10]} c5 {[%emt 0:00:06]} 2. c4 {[%emt 0:00:18]} Nc6 {
[%emt 0:00:06]} 3. Nc3 {[%emt 0:00:32]} g6 {[%emt 0:00:05]} 4. e3 {[%emt 0:00:
11]} Nf6 {[%emt 0:00:13]} 5. d4 {[%emt 0:00:17]} cxd4 {[%emt 0:00:03]} 6. exd4
{[%emt 0:00:13]} d5 {[%emt 0:00:07]} 7. cxd5 {[%emt 0:00:31]} Nxd5 {[%emt 0:00:
08]} 8. Qb3 {[%emt 0:00:28]} Nxc3 {[%emt 0:00:05]} 9. Bc4 {[%emt 0:01:25]} Nd5
{[%emt 0:00:04]} 10. Bxd5 {[%emt 0:00:39]} e6 {[%emt 0:00:04]} 11. Bxc6+ {
[%emt 0:02:25]} bxc6 {[%emt 0:00:06]} 12. O-O {[%emt 0:01:56]} f6 {[%emt 0:00:
29]} 13. Be3 {[%emt 0:03:15]} Qd5 {[%emt 0:00:53]} 14. Nd2 {[%emt 0:06:32]} Be7
{[%emt 0:01:42]} 15. Rfc1 {[%emt 0:04:24]} Kf7 {[%emt 0:02:57]} 16. Qc4 {
[%emt 0:03:33]} Bd7 {[%emt 0:07:31]} 17. Nb3 {[%emt 0:08:49]} Rhb8 {[%emt 0:01:
06]} 18. Nc5 {[%emt 0:10:11]} Bxc5 {[%emt 0:01:38]} 19. dxc5 {[%emt 0:00:45]}
Qxc4 {[%emt 0:00:16]} 20. Rxc4 {[%emt 0:00:05]} Rxb2 {[%emt 0:00:23]} 21. Rd1 {
[%emt 0:01:09]} Ke7 {[%emt 0:01:51]} 22. Rcd4 {[%emt 0:00:23]} Rb7 {[%emt 0:00:
07]} 23. Ra4 {[%emt 0:00:57]} g5 {[%emt 0:08:40]} 24. h4 {[%emt 0:00:30]} h6 {
[%emt 0:00:17]} 25. hxg5 {[%emt 0:02:45]} hxg5 {[%emt 0:00:05]} 26. Ra6 {
[%emt 0:01:38]} e5 {[%emt 0:12:07]} 27. f3 {[%emt 0:00:45]} Rc8 {[%emt 0:00:34]
} 28. Rd6 {[%emt 0:01:46]} Be8 {[%emt 0:00:52]} 29. Rd3 {[%emt 0:04:02]} Bf7 {
[%emt 0:00:39]} 30. Rda3 {[%emt 0:03:28]} Rcc7 {[%emt 0:01:08]} 31. R6a4 {
[%emt 0:00:18]} Bd5 {[%emt 0:00:46]} 32. Kf2 {[%emt 0:00:29]} Ke6 {[%emt 0:00:
07]} 33. Bd2 {[%emt 0:01:24]} Rh7 {[%emt 0:01:27]} 34. Rb4 {[%emt 0:00:10]}
Rxb4 {[%emt 0:02:46]} 35. Bxb4 {[%emt 0:00:01]} Bc4 {[%emt 0:01:40]} 36. Bd2 {
[%emt 0:03:42]} Kd5 {[%emt 0:00:05]} 37. Be3 {[%emt 0:00:19]} Rb7 {[%emt 0:00:
07]} 38. Kg3 {[%emt 0:06:55]} a6 {[%emt 0:01:58]} 39. Kg4 {[%emt 0:01:47]} Ke6
{[%emt 0:00:20]} 40. Ra4 {[%emt 0:00:00]} Bf1 {[%emt 0:00:00]} 41. Bc1 {
[%emt 0:06:13]} Rb1 {[%emt 0:05:57]} 42. Ba3 {[%emt 0:01:51]} Rd1 {[%emt 0:00:
45]} 43. Rb4 {[%emt 0:07:00]} Rd2 {[%emt 0:00:12]} 44. Rb1 {[%emt 0:01:53]}
Rxg2+ {[%emt 0:00:58]} 45. Kh3 {[%emt 0:01:29]} Rxa2+ {[%emt 0:00:07]} 46. Rxf1
{[%emt 0:00:17]} Rxa3 {[%emt 0:00:05]} 47. Rd1 {[%emt 0:00:03]} Rxf3+ {[%emt 0:
00:13]} 48. Kg2 {[%emt 0:00:05]} e4 {[%emt 0:00:15]} 49. Rd6+ {[%emt 0:00:11]}
Ke5 {[%emt 0:00:05]} 0-1

[Event "25th European Club Cup Women 2021"]
[Site "Struga"]
[Date "2021.09.24"]
[Round "7.7"]
[White "Djukic, Sandra"]
[Black "Urh, Zala"]
[Result "0-1"]
[ECO "D39"]
[WhiteElo "2127"]
[BlackElo "2234"]
[Annotator "NA"]
[PlyCount "68"]
[EventDate "2021.09.18"]
[EventType "team-tourn"]
[EventCountry "MKD"]
[SourceTitle "playchess.com"]
[Source "ChessBase"]
[SourceQuality "1"]
[TimeControl "40/5400+30:1800+30"]

1. d4 {[%emt 0:00:02]} Nf6 {[%emt 0:00:35]} 2. c4 {[%emt 0:00:07]} e6 {[%emt 0:
00:03]} 3. Nf3 {[%emt 0:00:07]} d5 {[%emt 0:00:05]} 4. Nc3 {[%emt 0:00:07]} Bb4
{[%emt 0:00:04]} 5. Bg5 {[%emt 0:00:12]} dxc4 {[%emt 0:00:08]} 6. Qa4+ {
[%emt 0:12:25]} Nc6 {[%emt 0:00:24]} 7. e3 {[%emt 0:00:12]} Bd7 {[%emt 0:05:27]
} 8. Qc2 {[%emt 0:01:22]} b5 {[%emt 0:02:17]} 9. Be2 {[%emt 0:01:55]} Rb8 {
[%emt 0:05:11]} 10. a4 {[%emt 0:13:30]} a6 {[%emt 0:01:37]} 11. O-O {[%emt 0:
00:08]} h6 {[%emt 0:04:00]} 12. Bh4 {[%emt 0:10:36]} O-O {[%emt 0:02:36]} 13.
axb5 {[%emt 0:02:07]} axb5 {[%emt 0:01:17]} 14. Rfd1 {[%emt 0:29:42]} Be7 {
[%emt 0:03:33]} 15. e4 {[%emt 0:09:44]} Nb4 {[%emt 0:14:47]} 16. Qb1 {[%emt 0:
07:40]} Nh5 {[%emt 0:04:53]} 17. Bg3 {[%emt 0:00:50]} Nxg3 {[%emt 0:00:46]} 18.
hxg3 {[%emt 0:00:04]} Qc8 {[%emt 0:02:36]} 19. Ne5 {[%emt 0:02:26]} Rd8 {
[%emt 0:00:40]} 20. b3 {[%emt 0:05:27]} cxb3 {[%emt 0:01:01]} 21. Qxb3 {
[%emt 0:00:05]} Be8 {[%emt 0:03:07]} 22. Ra7 {[%emt 0:02:08]} Rb7 {[%emt 0:05:
54]} 23. Rxb7 {[%emt 0:00:18]} Qxb7 {[%emt 0:00:01]} 24. d5 {[%emt 0:00:13]}
exd5 {[%emt 0:01:37]} 25. exd5 {[%emt 0:00:05]} Bd6 {[%emt 0:09:41]} 26. Ng4 {
[%emt 0:01:22]} f5 {[%emt 0:07:25]} 27. Ne3 {[%emt 0:00:05]} Bd7 {[%emt 0:00:
04]} 28. Qb1 {[%emt 0:00:56]} Rf8 {[%emt 0:01:25]} 29. Rd4 {[%emt 0:00:28]} Na6
{[%emt 0:01:36]} 30. Nxb5 {[%emt 0:00:30]} Qb6 {[%emt 0:12:12]} 31. Nc4 {
[%emt 0:00:25]} Qxb5 {[%emt 0:01:01]} 32. Qd1 {[%emt 0:00:24]} Qc5 {[%emt 0:01:
45]} 33. Qa1 {[%emt 0:00:31]} Nb4 {[%emt 0:01:22]} 34. Nxd6 {[%emt 0:00:40]}
Nc2 {[%emt 0:02:39]} 0-1